bitfinex-derivatives/quotes_BTCF0:USTF0_20241104
["timestamp","ask_amount","ask_price","bid_price","bid_amount"]
[1730699728326,0.092667,68851.0,68850.0,0.074668]
[1730699729223,0.082667,68851.0,68850.0,0.073668]
[1730699729528,0.088667,68851.0,68850.0,0.074668]
[1730699730924,0.088667,68851.0,68850.0,0.11097882]
[1730699731323,0.088667,68851.0,68850.0,0.03831082]
[1730699733817,0.11674435,68851.0,68850.0,0.03831082]
[1730699735833,0.15233904,68851.0,68850.0,0.03831082]
[1730699736528,0.18793385,68851.0,68850.0,0.03831082]
[1730699736833,0.15233916,68851.0,68850.0,0.03831082]
[1730699737830,0.15233916,68851.0,68850.0,0.11097882]
[1730699738425,0.07967216,68851.0,68850.0,0.11097882]
[1730699740228,0.07967171,68851.0,68850.0,0.11097882]
[1730699741529,0.04407719,68851.0,68850.0,0.11097882]
[1730699741725,0.07967171,68851.0,68850.0,0.11097882]
[1730699742735,0.016,68851.0,68850.0,0.11097882]
[1730699745240,0.016,68851.0,68850.0,0.1544222]
[1730699745837,0.016,68851.0,68850.0,0.11097882]
[1730699747328,0.016,68851.0,68850.0,0.14257882]
[1730699751039,0.04407481,68851.0,68850.0,0.14257882]
[1730699751344,0.016,68851.0,68850.0,0.14257882]
[1730699751638,0.04407502,68851.0,68850.0,0.14257882]
[1730699752341,0.016,68851.0,68850.0,0.14257882]
[1730699752640,0.04407467,68851.0,68850.0,0.14257882]
[1730699756844,0.016,68851.0,68850.0,0.14257882]
[1730699764653,0.016,68851.0,68850.0,0.11097882]
[1730699764949,0.18031268,68851.0,68850.0,0.03831082]
[1730699765134,0.088667,68851.0,68850.0,0.03831082]
[1730699766649,0.016,68851.0,68850.0,0.11097882]
[1730699768543,0.016,68851.0,68850.0,0.14167882]
[1730699769747,0.016,68851.0,68850.0,0.2333245]
[1730699772144,0.0440737,68851.0,68850.0,0.2333245]
[1730699774246,0.016,68851.0,68850.0,0.2333245]
[1730699777056,0.016,68851.0,68850.0,0.27691547]
[1730699777249,0.016,68851.0,68850.0,0.2333245]
[1730699777748,0.016,68851.0,68850.0,0.2026245]
[1730699780746,0.016,68851.0,68850.0,0.03831082]
[1730699780747,0.18031268,68851.0,68850.0,0.03831082]
[1730699780948,0.088667,68851.0,68850.0,0.03831082]
[1730699782267,0.15233819,68851.0,68850.0,0.03831082]
[1730699787576,0.15233819,68851.0,68850.0,0.2026245]
[1730699788185,0.07967119,68851.0,68850.0,0.2026245]
[1730699788380,0.04407696,68851.0,68850.0,0.2026245]
[1730699789378,0.016,68851.0,68850.0,0.2026245]
[1730699789865,0.016,68851.0,68850.0,0.29427018]
[1730699790570,0.02241921,68856.0,68850.0,0.72999018]
[1730699790879,0.3608,68864.0,68861.0,0.072656]
[1730699791182,0.3608,68864.0,68862.0,0.09164568]
[1730699791876,0.3608,68864.0,68862.0,0.16430168]
[1730699792670,0.00717978,68863.0,68862.0,0.16530168]
[1730699794072,0.02989039,68863.0,68862.0,0.16530168]
[1730699794278,0.02989039,68863.0,68862.0,0.16630168]
[1730699798370,0.00717978,68863.0,68862.0,0.16630168]
[1730699804575,0.03525041,68863.0,68862.0,0.16630168]
[1730699811381,0.00717978,68863.0,68862.0,0.16630168]
[1730699811776,0.00717978,68863.0,68862.0,0.25794736]
[1730699812576,0.00717978,68863.0,68862.0,0.69358736]
[1730699812889,0.008,68863.0,68862.0,0.69358736]
[1730699813670,0.3608,68875.0,68872.0,0.072645]
[1730699813878,0.3608,68875.0,68874.0,0.09164568]
[1730699813879,0.38351336,68875.0,68874.0,0.09164568]
[1730699814079,0.02271336,68875.0,68874.0,0.09164568]
[1730699814281,0.072641,68876.0,68874.0,0.09164568]
[1730699814784,0.072641,68876.0,68874.0,0.16428868]
[1730699814988,0.00217831,68877.0,68876.0,0.072641]
[1730699815976,0.02437035,68877.0,68876.0,0.072641]
[1730699817080,0.02437035,68877.0,68876.0,0.073641]
[1730699817384,0.03237035,68877.0,68876.0,0.074641]
[1730699819885,0.09653074,68877.0,68876.0,0.074641]
[1730699821286,0.09657684,68877.0,68876.0,0.074641]
[1730699823387,0.06099703,68877.0,68876.0,0.074641]
[1730699824396,0.03880499,68877.0,68876.0,0.074641]
[1730699824584,0.03880499,68877.0,68876.0,0.16628668]
[1730699824983,0.03662668,68877.0,68876.0,0.16628668]
[1730699825381,0.03704424,68877.0,68876.0,0.16628668]
[1730699825583,0.3608,68891.0,68889.0,0.072627]
[1730699825780,0.3608,68891.0,68889.0,0.16427268]
[1730699825781,0.03557521,68890.0,68889.0,0.16427268]
[1730699826583,0.38390966,68891.0,68889.0,0.16427268]
[1730699826984,0.02310966,68891.0,68889.0,0.16427268]
[1730699827195,0.00217829,68892.0,68889.0,0.16427268]
[1730699827398,0.00217829,68892.0,68889.0,0.09164568]
[1730699827584,0.072631,68886.0,68880.0,0.433436]
[1730699827784,0.072631,68886.0,68882.0,0.09164568]
[1730699827989,0.072631,68886.0,68880.0,0.3608]
[1730699827990,0.072628,68889.0,68885.0,0.09164568]
[1730699828190,0.072628,68889.0,68888.0,0.09164568]
[1730699828684,0.07263,68886.0,68885.0,0.09164568]
[1730699828885,0.072634,68884.0,68882.0,0.09164568]
[1730699829084,0.072634,68884.0,68882.0,0.09264568]
[1730699829395,0.072634,68884.0,68883.0,0.072634]
[1730699831101,0.072634,68884.0,68883.0,0.073634]
[1730699831610,0.16427968,68884.0,68883.0,0.002]
[1730699832595,0.18687546,68884.0,68883.0,0.002]
[1730699832801,0.62239546,68884.0,68883.0,0.002]
[1730699834494,0.65797536,68884.0,68883.0,0.002]
[1730699835504,0.68625735,68884.0,68883.0,0.002]
[1730699837594,0.25073735,68884.0,68883.0,0.002]
[1730699838806,0.072647,68870.0,68867.0,0.09164568]
[1730699838994,0.10079436,68870.0,68866.0,0.36156]
[1730699839200,0.46159436,68870.0,68861.0,0.15414568]
[1730699839396,0.433447,68870.0,68868.0,0.09164568]
[1730699840106,0.433447,68870.0,68868.0,0.16429468]
[1730699841199,0.433447,68870.0,68868.0,0.09164568]
[1730699841507,0.433447,68870.0,68869.0,0.00317828]
[1730699841508,0.52509268,68870.0,68869.0,0.00317828]
[1730699842203,0.433447,68870.0,68869.0,0.00317828]
[1730699842402,0.434447,68870.0,68869.0,0.00417828]
[1730699842607,0.52609268,68870.0,68869.0,0.00417828]
[1730699844002,0.52609268,68870.0,68869.0,0.00317828]
[1730699844201,0.52609268,68870.0,68869.0,0.00417828]
[1730699844707,0.52509268,68870.0,68869.0,0.00317828]
[1730699845010,0.52509268,68870.0,68869.0,0.00417828]
[1730699845711,1.07512834,68870.0,68869.0,0.00181977]
[1730699845908,1.07512834,68870.0,68851.0,0.072667]
[1730699846208,0.072666,68852.0,68851.0,0.16431268]
[1730699848204,0.072666,68852.0,68851.0,0.17831268]
[1730699850413,0.072663,68856.0,68852.0,0.072666]
[1730699850609,0.072663,68856.0,68854.0,0.09164568]
[1730699851310,0.072663,68856.0,68854.0,0.16430968]
[1730699851818,0.072663,68856.0,68855.0,0.072663]
[1730699852009,0.072657,68861.0,68856.0,0.072661]
[1730699852209,0.3608,68862.0,68860.0,0.09164568]
[1730699852408,0.3608,68862.0,68861.0,0.0327]
[1730699853923,0.3608,68862.0,68861.0,0.0337]
[1730699855413,0.072655,68863.0,68861.0,0.0337]
[1730699855818,0.072655,68863.0,68862.0,0.0318]
[1730699857012,0.073655,68863.0,68862.0,0.0338]
[1730699857616,0.001,68863.0,68862.0,0.0338]
[1730699857815,0.001,68863.0,68862.0,0.106456]
[1730699859024,0.001,68863.0,68862.0,0.105456]
[1730699859223,0.001,68863.0,68862.0,0.106456]
[1730699869127,0.001,68863.0,68862.0,0.105456]
[1730699873922,0.073655,68863.0,68862.0,0.105456]
[1730699879633,0.10172512,68863.0,68862.0,0.105456]
[1730699880731,0.10172509,68863.0,68862.0,0.105456]
[1730699882936,0.02907009,68863.0,68862.0,0.105456]
[1730699883650,0.02907009,68863.0,68862.0,0.19710168]
[1730699883941,0.02907009,68863.0,68862.0,0.55790168]
[1730699884147,0.001,68863.0,68862.0,0.55790168]
[1730699885345,0.001,68863.0,68862.0,0.466256]
[1730699886947,0.001,68863.0,68862.0,0.47803611]
[1730699887248,0.001,68863.0,68862.0,0.434456]
[1730699888649,0.073655,68863.0,68862.0,0.434456]
[1730699893852,0.1017259,68863.0,68862.0,0.434456]
[1730699901859,0.073655,68863.0,68862.0,0.434456]
[1730699902662,0.073655,68863.0,68862.0,0.47803611]
[1730699904451,0.073655,68863.0,68862.0,0.434456]
[1730699904651,0.073655,68863.0,68862.0,0.47803611]
[1730699905052,0.073655,68863.0,68862.0,0.073656]
[1730699906456,0.073655,68863.0,68862.0,0.11723611]
[1730699908468,0.073655,68863.0,68862.0,0.073656]
[1730699908956,0.10172548,68863.0,68862.0,0.073656]
[1730699910055,0.073655,68863.0,68862.0,0.073656]
[1730699911258,0.10172526,68863.0,68862.0,0.073656]
[1730699915770,0.10172526,68863.0,68862.0,0.001]
[1730699915771,0.10172536,68863.0,68862.0,0.001]
[1730699916961,0.073655,68863.0,68862.0,0.001]
[1730699921977,0.073655,68863.0,68862.0,0.04460258]
[1730699923872,0.10172674,68863.0,68862.0,0.001]
[1730699927882,0.46252674,68863.0,68862.0,0.001]
[1730699928179,0.9337579,68863.0,68862.0,0.001]
[1730699930783,0.5972779,68863.0,68862.0,0.001]
[1730699931585,0.4981179,68863.0,68862.0,0.001]
[1730699931879,0.533615,68863.0,68862.0,0.001]
[1730699936387,0.434455,68863.0,68862.0,0.09264568]
[1730699937883,0.073655,68863.0,68862.0,0.09264568]
[1730699939774,0.073655,68863.0,68862.0,0.16530168]
[1730699941080,0.001,68863.0,68862.0,0.16530168]
[1730699944681,0.001,68863.0,68862.0,0.073656]
[1730699945287,0.09264568,68863.0,68862.0,0.073656]
[1730699946674,0.16530068,68863.0,68862.0,0.073656]
[1730699947183,0.22896105,68863.0,68862.0,0.073656]
[1730699948182,0.13731537,68863.0,68862.0,0.073656]
[1730699948688,0.13731327,68863.0,68862.0,0.073656]
[1730699948886,0.06465827,68863.0,68862.0,0.073656]
[1730699949192,0.06465827,68863.0,68862.0,0.16530168]
[1730699950187,0.06465827,68863.0,68862.0,0.073656]
[1730699952485,0.02907126,68863.0,68862.0,0.073656]
[1730699952780,0.02907126,68863.0,68862.0,0.16530168]
[1730699953996,0.001,68863.0,68862.0,0.16530168]
[1730699966589,0.001,68863.0,68862.0,0.20890426]
[1730699968296,0.001,68863.0,68862.0,0.16530168]
[1730699968893,0.001,68863.0,68862.0,0.31505434]
[1730699969094,0.001,68863.0,68862.0,0.22340866]
[1730699969298,0.001,68863.0,68862.0,0.073656]
[1730699969299,0.12080418,68863.0,68862.0,0.073656]
[1730699970707,0.0291585,68863.0,68862.0,0.073656]
[1730699972308,0.02907115,68863.0,68862.0,0.073656]
[1730699977007,0.001,68863.0,68862.0,0.11726294]
[1730699984121,0.02907133,68863.0,68862.0,0.073656]
[1730699986418,0.001,68863.0,68862.0,0.073656]
[1730699987120,0.02907137,68863.0,68862.0,0.073656]
[1730699989416,0.02907137,68863.0,68862.0,0.16530168]
[1730699992022,0.001,68863.0,68862.0,0.16530168]
[1730699996517,0.001,68863.0,68862.0,0.20891126]
[1730699998723,0.001,68863.0,68862.0,0.16530168]
[1730699999818,0.02907115,68863.0,68862.0,0.16530168]
[1730700001626,0.02907082,68863.0,68862.0,0.16530168]
[1730700005432,0.02907082,68863.0,68862.0,0.073656]
[1730700006728,0.02907082,68863.0,68862.0,0.16530168]
[1730700007235,0.001,68863.0,68862.0,0.16530168]
[1730700011422,0.001,68863.0,68862.0,0.20890801]
[1730700011621,0.001,68863.0,68862.0,0.16530168]
[1730700012025,0.001,68863.0,68862.0,0.20890801]
[1730700012732,0.001,68863.0,68862.0,0.25694736]
[1730700013230,0.001,68863.0,68862.0,0.16530168]
[1730700014029,0.001,68863.0,68862.0,0.25694736]
[1730700014423,0.001,68863.0,68862.0,0.69258736]
[1730700016526,0.001,68863.0,68862.0,0.16530168]
[1730700016829,0.001,68863.0,68862.0,0.69258736]
[1730700019629,0.001,68863.0,68862.0,0.16530168]
[1730700021229,0.001,68863.0,68862.0,0.001]
[1730700021421,0.09264568,68863.0,68862.0,0.001]
[1730700021629,0.02906934,68863.0,68862.0,0.001]
[1730700022029,0.073655,68863.0,68862.0,0.001]
[1730700022231,0.106255,68863.0,68862.0,0.001]
[1730700024540,0.106255,68863.0,68862.0,0.09264568]
[1730700025233,0.001,68863.0,68862.0,0.16530168]
[1730700026233,0.001,68863.0,68862.0,0.25694736]
[1730700026737,0.001,68863.0,68862.0,0.16530168]
[1730700026939,0.001,68863.0,68862.0,0.25694736]
[1730700027325,0.001,68863.0,68862.0,0.3005364]
[1730700027832,0.001,68863.0,68862.0,0.69258736]
[1730700028229,0.001,68863.0,68862.0,0.25694736]
[1730700028434,0.001,68863.0,68862.0,0.69258736]
[1730700028939,0.001,68863.0,68862.0,0.75070609]
[1730700029136,0.001,68863.0,68862.0,0.25694736]
[1730700030637,0.001,68863.0,68862.0,0.43118728]
[1730700030832,0.00217846,68877.0,68862.0,0.8356778]
[1730700031037,0.00217846,68877.0,68876.0,0.25593236]
[1730700031239,0.00217846,68877.0,68876.0,0.16428668]
[1730700033138,0.00217846,68877.0,68876.0,0.16528668]
[1730700033644,0.00217846,68877.0,68876.0,0.16628668]
[1730700035549,0.00217846,68877.0,68876.0,0.25793236]
[1730700035737,0.00217846,68877.0,68876.0,0.30147594]
[1730700035941,0.00217846,68877.0,68876.0,0.25793236]
[1730700036537,0.3608,68909.0,68876.0,1.10255222]
[1730700036744,0.433413,68903.0,68899.0,0.09164568]
[1730700037137,0.12306275,68900.0,68899.0,0.09164568]
[1730700037342,0.15197815,68900.0,68899.0,0.09164568]
[1730700037739,0.12306275,68900.0,68899.0,0.16426268]
[1730700038952,0.12306275,68900.0,68899.0,0.16526268]
[1730700039353,0.12306275,68900.0,68899.0,0.073617]
[1730700039552,0.12306275,68900.0,68899.0,0.074617]
[1730700042052,0.12306275,68900.0,68899.0,0.21416684]
[1730700043746,0.12306275,68900.0,68899.0,0.57496684]
[1730700043747,0.1,68900.0,68899.0,0.57496684]
[1730700048160,0.1,68900.0,68899.0,0.21416684]
[1730700048358,0.1,68900.0,68899.0,0.074617]
[1730700048555,0.1,68900.0,68899.0,0.21416684]
[1730700051365,0.1,68900.0,68899.0,0.57496684]
[1730700055157,0.1,68900.0,68899.0,0.21416684]
[1730700055369,0.1,68900.0,68899.0,0.074617]
[1730700057467,0.1290418,68900.0,68899.0,0.074617]
[1730700058367,0.1290418,68900.0,68899.0,0.21416684]
[1730700058667,0.12909245,68900.0,68899.0,0.21416684]
[1730700059573,0.1,68900.0,68899.0,0.21416684]
[1730700061467,0.1,68900.0,68899.0,0.435417]
[1730700061876,0.1,68900.0,68899.0,0.498817]
[1730700063677,0.1,68900.0,68899.0,0.530417]
[1730700064465,0.1,68900.0,68899.0,0.57390434]
[1730700065071,0.1,68900.0,68899.0,0.530417]
[1730700065975,0.1,68900.0,68899.0,0.55327928]
[1730700066171,0.1,68900.0,68899.0,0.61126241]
[1730700066681,0.1,68900.0,68899.0,0.61132918]
[1730700066875,0.1,68900.0,68899.0,0.55327928]
[1730700067177,0.1,68900.0,68899.0,0.498817]
[1730700067375,0.1,68900.0,68899.0,0.54135614]
[1730700067675,0.1,68900.0,68899.0,0.54235614]
[1730700068677,0.1,68900.0,68899.0,0.498817]
[1730700068876,0.1,68900.0,68899.0,0.54235614]
[1730700069665,0.1,68900.0,68899.0,0.498817]
[1730700070071,0.1,68900.0,68899.0,0.074617]
[1730700071067,0.1,68900.0,68899.0,0.435417]
[1730700071271,0.1,68900.0,68899.0,0.61856066]
[1730700074483,0.12966778,68900.0,68899.0,0.61856066]
[1730700075583,0.1,68900.0,68899.0,0.61856066]
[1730700075777,0.0937,68916.0,68914.0,0.072601]
[1730700075981,0.26019912,68916.0,68915.0,0.0726]
[1730700076187,0.20364596,68916.0,68915.0,0.0726]
[1730700076687,0.12607186,68916.0,68915.0,0.0726]
[1730700076887,0.06537186,68916.0,68915.0,0.0726]
[1730700077389,0.06537186,68916.0,68915.0,0.0736]
[1730700077777,0.06536796,68916.0,68915.0,0.0736]
[1730700078790,0.06536796,68916.0,68915.0,0.0746]
[1730700079380,0.06536794,68916.0,68915.0,0.0746]
[1730700079690,0.02981022,68916.0,68915.0,0.0746]
[1730700080078,0.03011627,68917.0,68915.0,0.002]
[1730700080384,0.03011627,68916.0,68915.0,0.002]
[1730700081177,0.03011627,68916.0,68915.0,0.0736]
[1730700081376,0.03011627,68916.0,68915.0,0.0746]
[1730700081576,0.00217696,68918.0,68917.0,0.072598]
[1730700081777,0.14387114,68936.0,68917.0,0.71622166]
[1730700082076,0.072582,68932.0,68929.0,0.09157183]
[1730700082284,0.072585,68930.0,68917.0,0.3608]
[1730700082484,0.072585,68930.0,68924.0,0.07259]
[1730700082683,0.072585,68930.0,68917.0,0.3608]
[1730700082684,0.0639,68931.0,68918.0,0.072597]
[1730700082881,0.0639,68931.0,68917.0,0.3608]
[1730700082882,0.3608,68925.0,68917.0,0.3608]
[1730700083187,0.072595,68920.0,68917.0,0.3608]
[1730700083386,0.0623,68919.0,68917.0,0.45237183]
[1730700083782,0.134896,68919.0,68917.0,0.45237183]
[1730700083982,0.134896,68919.0,68917.0,0.45337183]
[1730700084377,0.134896,68919.0,68918.0,0.072597]
[1730700084579,0.0623,68919.0,68918.0,0.072597]
[1730700085882,0.0314,68919.0,68918.0,0.073597]
[1730700086083,0.105491,68924.0,68921.0,0.072593]
[1730700086385,0.105491,68924.0,68923.0,0.09157183]
[1730700086583,0.105491,68924.0,68923.0,0.16416283]
[1730700086584,0.0329,68924.0,68923.0,0.16416283]
[1730700087288,0.10549,68924.0,68921.0,0.001]
[1730700087492,0.0329,68924.0,68921.0,0.001]
[1730700087696,0.072592,68923.0,68921.0,0.001]
[1730700087992,0.072592,68923.0,68917.0,0.3608]
[1730700088192,0.072592,68923.0,68921.0,0.072593]
[1730700088684,0.072592,68923.0,68921.0,0.001]
[1730700088891,0.0329,68924.0,68923.0,0.072591]
[1730700089884,0.3608,68925.0,68924.0,0.07259]
[1730700091384,0.3608,68925.0,68924.0,0.07359]
[1730700091796,0.38978756,68925.0,68924.0,0.07459]
[1730700093596,0.38983332,68925.0,68924.0,0.07459]
[1730700095595,0.0312,68936.0,68924.0,0.07459]
[1730700095798,0.0312,68936.0,68932.0,0.13951448]
[1730700095799,0.06485068,68935.0,68932.0,0.13951448]
[1730700096003,0.06485068,68935.0,68932.0,0.21209648]
[1730700096598,0.0312,68936.0,68932.0,0.21209648]
[1730700096986,0.102877,68937.0,68932.0,0.21209648]
[1730700096987,0.072579,68935.0,68932.0,0.21209648]
[1730700097194,0.072579,68935.0,68932.0,0.21309648]
[1730700097383,0.07475256,68938.0,68934.0,0.072579]
[1730700097996,0.07475256,68938.0,68932.0,0.14051448]
[1730700098197,0.00217656,68938.0,68932.0,0.14051448]
[1730700098395,0.00217656,68938.0,68937.0,0.072577]
[1730700098899,0.02442252,68938.0,68937.0,0.072577]
[1730700099096,0.00217656,68938.0,68937.0,0.072577]
[1730700100597,0.00217656,68938.0,68937.0,0.073577]
[1730700100895,0.00217656,68938.0,68937.0,0.074577]
[1730700101091,0.02544817,68938.0,68937.0,0.074577]
[1730700109312,0.02544817,68938.0,68937.0,0.1661099]
[1730700111597,0.09139087,68938.0,68937.0,0.1661099]
[1730700113006,0.06811926,68938.0,68937.0,0.1661099]
[1730700113414,0.1126781,68938.0,68937.0,0.1661099]
[1730700113998,0.1127583,68938.0,68937.0,0.1661099]
[1730700115101,0.27687068,68938.0,68937.0,0.002]
[1730700115296,0.34037068,68938.0,68937.0,0.002]
[1730700115497,0.34037068,68938.0,68937.0,0.00118433]
[1730700115498,0.39244327,68938.0,68937.0,0.00118433]
[1730700115903,0.55070153,68938.0,68937.0,0.00118433]
[1730700116304,0.39244327,68938.0,68937.0,0.00118433]
[1730700116501,0.49863437,68938.0,68937.0,0.00118433]
[1730700116703,0.4982751,68938.0,68937.0,0.00118433]
[1730700117604,0.55034687,68938.0,68937.0,0.00118433]
[1730700118808,0.77517141,68938.0,68937.0,0.00018433]
[1730700119112,0.91915354,68938.0,68937.0,0.00018433]
[1730700119316,0.8231463,68938.0,68937.0,0.00018433]
[1730700119615,0.96712843,68938.0,68937.0,0.00018433]
[1730700119815,0.71292035,68938.0,68937.0,0.00018433]
[1730700121213,1.04296501,68938.0,68937.0,0.00018433]
[1730700121403,0.74296501,68938.0,68937.0,0.00018433]
[1730700122110,0.71292035,68938.0,68937.0,0.00018433]
[1730700122612,0.07475256,68938.0,68937.0,0.00018433]
[1730700123013,0.10484821,68938.0,68937.0,0.00018433]
[1730700123207,0.679516,68938.0,68937.0,0.00018433]
[1730700123408,0.843996,68938.0,68937.0,0.00018433]
[1730700126521,0.81390035,68938.0,68937.0,0.00018433]
[1730700129224,0.92377758,68938.0,68937.0,0.00018433]
[1730700129809,0.78426979,68938.0,68937.0,0.00018433]
[1730700130721,0.67439256,68938.0,68937.0,0.00018433]
[1730700134117,0.23923256,68938.0,68937.0,0.00018433]
[1730700134414,0.30471681,68938.0,68937.0,0.00018433]
[1730700134621,0.27241681,68938.0,68937.0,0.00018433]
[1730700135013,0.24031681,68938.0,68937.0,0.00018433]
[1730700135212,0.07475256,68938.0,68937.0,0.00018433]
[1730700136314,0.64942035,68938.0,68937.0,0.00018433]
[1730700136521,0.072595,68920.0,68919.0,0.05598391]
[1730700136732,0.433395,68920.0,68919.0,0.0328]
[1730700137815,0.433395,68920.0,68919.0,0.0468]
[1730700138523,0.433395,68920.0,68919.0,0.133396]
[1730700142120,0.433395,68920.0,68919.0,0.0608]
[1730700144727,0.46268255,68920.0,68919.0,0.0608]
[1730700145318,0.433395,68920.0,68919.0,0.0608]
[1730700146925,0.39014394,68920.0,68919.0,0.133396]
[1730700147134,0.02281262,68924.0,68919.0,0.0608]
[1730700147433,0.07259,68925.0,68924.0,0.07259]
[1730700147622,0.10211307,68925.0,68924.0,0.07259]
[1730700150033,0.1022044,68925.0,68924.0,0.07259]
[1730700150234,0.07259,68925.0,68924.0,0.07259]
[1730700151131,0.07359,68925.0,68924.0,0.07259]
[1730700151330,0.001,68925.0,68924.0,0.07259]
[1730700157339,0.03060366,68925.0,68924.0,0.07259]
[1730700159438,0.03055677,68925.0,68924.0,0.07259]
[1730700164036,0.03089979,68925.0,68924.0,0.07259]
[1730700165344,0.001,68925.0,68924.0,0.07259]
[1730700169341,0.001,68925.0,68924.0,0.16413558]
[1730700170950,0.15544558,68937.0,68924.0,0.69092116]
[1730700170951,0.0639,68937.0,68924.0,0.69092116]
[1730700171152,0.0328,68937.0,68936.0,0.16412358]
[1730700171454,0.072572,68942.0,68939.0,0.072575]
[1730700171642,0.072572,68942.0,68939.0,0.16412058]
[1730700172747,0.02516634,68940.0,68939.0,0.16412058]
[1730700172961,0.02516634,68940.0,68939.0,0.16512058]
[1730700173465,0.02616634,68940.0,68939.0,0.16612058]
[1730700174566,0.38696634,68940.0,68939.0,0.16612058]
[1730700175764,0.55108492,68940.0,68939.0,0.002]
[1730700176067,0.98624492,68940.0,68939.0,0.002]
[1730700176271,1.01621489,68940.0,68939.0,0.002]
[1730700176669,0.072593,68922.0,68921.0,0.072593]
[1730700177460,0.072595,68920.0,68917.0,0.072597]
[1730700179377,0.3608,68923.0,68913.0,0.072602]
[1730700179378,0.072598,68917.0,68913.0,0.072602]
[1730700179569,0.02947546,68916.0,68913.0,0.072602]
[1730700179759,0.02947546,68915.0,68913.0,0.072602]
[1730700180073,0.02947546,68914.0,68913.0,0.072602]
[1730700181265,0.02944292,68914.0,68913.0,0.072602]
[1730700181865,0.02944292,68914.0,68913.0,0.100602]
[1730700182665,0.02944292,68914.0,68913.0,0.086602]
[1730700182865,0.02944292,68914.0,68913.0,0.100602]
[1730700185172,0.09154558,68922.0,68913.0,0.100602]
[1730700185173,0.00104001,68923.0,68922.0,0.072592]
[1730700185477,0.02969366,68923.0,68922.0,0.52493758]
[1730700185682,0.072584,68930.0,68925.0,0.072588]
[1730700185972,0.02988975,68929.0,68927.0,0.072587]
[1730700186169,0.02988975,68928.0,68927.0,0.072587]
[1730700186472,0.02988975,68929.0,68927.0,0.16413258]
[1730700186772,0.02988975,68928.0,68927.0,0.16413258]
[1730700187176,0.02988975,68929.0,68927.0,0.09154558]
[1730700187377,0.0303,68932.0,68928.0,0.072585]
[1730700187576,0.05284563,68932.0,68929.0,0.072585]
[1730700187879,0.0303,68932.0,68929.0,0.072585]
[1730700188078,0.0303,68932.0,68927.0,0.13948924]
[1730700188267,0.001,68929.0,68928.0,0.072586]
[1730700189164,0.001,68932.0,68931.0,0.072583]
[1730700190375,0.433379,68935.0,68928.0,0.001]
[1730700190569,0.433379,68935.0,68932.0,0.072581]
[1730700191165,0.433379,68935.0,68933.0,0.072581]
[1730700192977,0.434379,68935.0,68933.0,0.074581]
[1730700193974,0.07258,68934.0,68933.0,0.074581]
[1730700194875,0.07258,68934.0,68933.0,0.002]
[1730700195278,0.07358,68934.0,68933.0,0.002]
[1730700196284,0.07358,68934.0,68933.0,0.001]
[1730700196482,0.07358,68934.0,68933.0,0.002]
[1730700197280,0.001,68934.0,68933.0,0.074581]
[1730700197781,0.001,68934.0,68933.0,0.21407024]
[1730700203183,0.03112644,68934.0,68933.0,0.21407024]
[1730700203390,0.001,68934.0,68933.0,0.21407024]
[1730700203587,0.03112642,68934.0,68933.0,0.21407024]
[1730700204588,0.001,68934.0,68933.0,0.21407024]
[1730700205289,0.001,68934.0,68933.0,0.57487024]
[1730700207484,0.001,68934.0,68933.0,0.52690868]
[1730700208187,0.0653,68947.0,68939.0,0.072575]
[1730700208487,0.0653,68947.0,68939.0,0.52490268]
[1730700209584,0.0653,68947.0,68939.0,0.52590268]
[1730700209888,0.0653,68947.0,68939.0,0.52690268]
[1730700209889,0.00317691,68940.0,68939.0,0.52690268]
[1730700212476,0.001,68940.0,68939.0,0.52690268]
[1730700213807,0.001,68940.0,68939.0,0.61843036]
[1730700217688,0.001,68940.0,68939.0,1.05359036]
[1730700218295,0.001,68940.0,68939.0,0.61843036]
[1730700220597,0.001,68940.0,68939.0,0.52690268]
[1730700226392,0.001,68940.0,68939.0,0.61843036]
[1730700228301,0.0331,68946.0,68945.0,0.072568]
[1730700228600,0.0331,68946.0,68945.0,0.25562336]
[1730700229696,0.0331,68946.0,68945.0,0.25662336]
[1730700230093,0.0331,68946.0,68945.0,0.25762336]
[1730700231002,0.38381127,68952.0,68946.0,0.072567]
[1730700231203,0.38381127,68952.0,68951.0,0.09152768]
[1730700232301,0.38381127,68952.0,68951.0,0.16408968]
[1730700232903,0.45080052,68952.0,68951.0,0.16408968]
[1730700233100,0.45080052,68952.0,68951.0,0.16608968]
[1730700234698,0.42778925,68952.0,68951.0,0.16608968]
[1730700236598,0.06698925,68952.0,68951.0,0.61841736]
[1730700236899,0.06698925,68952.0,68951.0,0.52688968]
[1730700237606,0.03099852,68952.0,68951.0,0.52688968]
[1730700237999,0.03099852,68952.0,68951.0,0.52588968]
[1730700238205,0.03099852,68952.0,68951.0,0.52688968]
[1730700238605,0.03099852,68952.0,68951.0,0.52588968]
[1730700238911,0.03099852,68952.0,68951.0,0.52688968]
[1730700239815,0.061,68958.0,68951.0,0.45432768]
[1730700240007,0.08373739,68958.0,68957.0,0.16408368]
[1730700241805,0.08373739,68958.0,68957.0,0.16508368]
[1730700243028,0.08373739,68958.0,68957.0,0.16608368]
[1730700243619,0.05373739,68958.0,68957.0,0.61841136]
[1730700244006,0.02273739,68958.0,68957.0,0.61841136]
[1730700244313,0.0613,68965.0,68963.0,0.072549]
[1730700244514,0.08433695,68965.0,68964.0,0.52487568]
[1730700244910,0.0613,68965.0,68964.0,0.52487568]
[1730700245708,0.00217578,68966.0,68965.0,0.072547]
[1730700245902,0.0622,68973.0,68972.0,0.07254]
[1730700246107,0.0622,68973.0,68967.0,0.09152768]
[1730700246303,0.07254,68972.0,68967.0,0.16407268]
[1730700246507,0.0622,68973.0,68967.0,0.16407268]
[1730700246716,0.3608,68970.0,68967.0,0.16407268]
[1730700246913,0.433343,68970.0,68967.0,0.09152768]
[1730700247521,0.433343,68970.0,68969.0,0.09152768]
[1730700247914,0.50201308,68970.0,68969.0,0.09152768]
[1730700248423,0.50201308,68970.0,68967.0,0.001]
[1730700248610,0.14121308,68969.0,68966.0,0.16407268]
[1730700248819,0.06867008,68968.0,68966.0,0.16407268]
[1730700249019,0.072543,68969.0,68966.0,0.16407268]